[Event "15th Paderborner Schachtuerken-Cup 2018"]
[Site "Paderborn"]
[Date "2018.12.27"]
[Round "1"]
[White "Gutman, Lev"]
[Black "Ollech, Dirk"]
[Result "1-0"]
[ECO "A39"]
[WhiteElo "2422"]
[BlackElo "1984"]
[Annotator "ChessBase"]
[PlyCount "97"]
[EventDate "2018.12.27"]
[EventType "swiss"]
[EventCountry "GER"]
[SourceTitle "playchess.com"]
[Source "ChessBase"]
[SourceQuality "1"]
[TimeControl "40/5400+30:900+30"]

1. Nf3 {[%emt 0:00:00]} Nf6 {[%emt 0:00:00]} 2. g3 {[%emt 0:00:00]} c5 {[%emt 0:00:07]} 3. Bg2 {[%emt 0:00:00]} Nc6 {[%emt 0:00:15]} 4. d4 {[%emt 0:00:00]} cxd4 {[%emt 0:00:27]} 5. Nxd4 {[%emt 0:00:02]} g6 {[%emt 0:00:32]} 6. O-O {[%emt 0:00:11]} Bg7 {[%emt 0:00:26]} 7. c4 {[%emt 0:00:11]} Nxd4 {[%emt 0:00:47]} 8. Qxd4 {[%emt 0:00:05]} O-O {[%emt 0:01:22]} 9. Nc3 {[%emt 0:00:08]} d6 {[%emt 0:00:33]} 10. Qd3 {[%emt 0:00:12]} Ng4 {[%emt 0:04:26]} 11. b3 {[%emt 0:00:39]} Ne5 {[%emt 0:01:45]} 12. Qd2 {[%emt 0:00:18]} Rb8 {[%emt 0:02:10]} 13. Bb2 {[%emt 0:00:26]} a6 {[%emt 0:02:32]} 14. Rfd1 {[%emt 0:00:47]} Be6 {[%emt 0:08:05]} 15. Ne4 {[%emt 0:23:38]} Qc7 {[%emt 0:16:08]} 16. Rac1 {[%emt 0:03:24]} b6 {[%emt 0:05:32]} 17. f4 {[%emt 0:11:06]} Nd7 {[%emt 0:13:32]} 18. Bxg7 {[%emt 0:00:20]} Kxg7 {[%emt 0:00:10]} 19. h3 {[%emt 0:14:27]} Nc5 {[%emt 0:11:26]} 20. Nf2 {[%emt 0:05:47]} a5 {[%emt 0:03:03]} 21. g4 {[%emt 0:01:23]} f5 {[%emt 0:03:09]} 22. g5 {[%emt 0:03:04]} b5 {[%emt 0:07:24]} 23. Bd5 {[%emt 0:14:28]} Bxd5 {[%emt 0:03:27]} 24. Qd4+ {[%emt 0:04:44]} Kg8 {[%emt 0:02:49]} 25. Qxd5+ {[%emt 0:00:10]} Kg7 {[%emt 0:00:21]} 26. Nd3 {[%emt 0:04:26]} Nxd3 {[%emt 0:05:04]} 27. Rxd3 {[%emt 0:00:37]} Qb6+ {[%emt 0:01:48]} 28. Kg2 {[%emt 0:06:01]} Rfc8 {[%emt 0:01:03]} 29. Rdc3 {[%emt 0:02:13]} b4 {[%emt 0:04:11]} 30. Rd3 {[%emt 0:00:05]} Qb7 {[%emt 0:00:38]} 31. Kf2 {[%emt 0:00:39]} Rc5 {[%emt 0:01:13]} 32. Qe6 {[%emt 0:00:23]} Rbc8 {[%emt 0:00:51]} 33. h4 {[%emt 0:00:22]} R8c7 {[%emt 0:00:39]} 34. h5 {[%emt 0:00:25]} Qe4 {[%emt 0:00:28]} 35. h6+ {[%emt 0:00:58]} Kf8 {[%emt 0:00:06]} 36. Qxe4 {[%emt 0:02:38]} fxe4 {[%emt 0:00:01]} 37. Rd4 {[%emt 0:00:55]} d5 {[%emt 0:00:14]} 38. Rcd1 {[%emt 0:01:11]} dxc4 {[%emt 0:01:26]} 39. Rd8+ {[%emt 0:00:02]} Kf7 {[%emt 0:00:15]} 40. Rh8 {[%emt 0:00:02]} cxb3 {[%emt 0:00:53]} 41. axb3 {[%emt 0:15:15]} e5 {[%emt 0:12:14]} 42. Rd6 {[%emt 0:00:00]} exf4 {[%emt 0:02:32]} 43. Rf6+ {[%emt 0:00:00]} Ke7 {[%emt 0:00:26]} 44. Rxh7+ {[%emt 0:00:00]} Ke8 {[%emt 0:00:27]} 45. Rh8+ {[%emt 0:00:00]} Ke7 {[%emt 0:00:20]} 46. Rxg6 {[%emt 0:00:00]} a4 {[%emt 0:01:35]} 47. bxa4 {[%emt 0:00:00]} Rc3 {[%emt 0:01:03]} 48. h7 {[%emt 0:00:00]} Kf7 {[%emt 0:00:28]} 49. Rhg8 {[%emt 0:02:11]} 1-0

[Event "15th Paderborner Schachtuerken-Cup 2018"]
[Site "Paderborn"]
[Date "2018.12.27"]
[Round "1"]
[White "Wagner, Alexej"]
[Black "Punsaem, Gap"]
[Result "1/2-1/2"]
[ECO "D85"]
[WhiteElo "2298"]
[BlackElo "1977"]
[Annotator "NA"]
[PlyCount "62"]
[EventDate "2018.12.27"]
[EventType "swiss"]
[EventCountry "GER"]
[SourceTitle "playchess.com"]
[Source "ChessBase"]
[SourceQuality "1"]
[TimeControl "40/5400+30:900+30"]

1. d4 {[%emt 0:00:00]} Nf6 {[%emt 0:00:00]} 2. c4 {[%emt 0:00:00]} g6 {[%emt 0:00:00]} 3. Nc3 {[%emt 0:00:00]} d5 {[%emt 0:00:00]} 4. cxd5 {[%emt 0:00:20]} Nxd5 {[%emt 0:00:00]} 5. Bd2 {[%emt 0:00:08]} Bg7 {[%emt 0:00:05]} 6. e4 {[%emt 0:00:21]} Nb6 {[%emt 0:00:07]} 7. Be3 {[%emt 0:00:15]} O-O {[%emt 0:01:18]} 8. h3 {[%emt 0:06:56]} Nc6 {[%emt 0:04:50]} 9. Nf3 {[%emt 0:00:10]} Na5 {[%emt 0:05:25]} 10. Be2 {[%emt 0:02:33]} Nac4 {[%emt 0:02:25]} 11. Bf4 {[%emt 0:03:41]} e5 {[%emt 0:09:12]} 12. dxe5 {[%emt 0:23:08]} Qxd1+ {[%emt 0:14:23]} 13. Nxd1 {[%emt 0:11:58]} Re8 {[%emt 0:02:34]} 14. Rc1 {[%emt 0:00:51]} Nxe5 {[%emt 0:03:21]} 15. Rxc7 {[%emt 0:01:25]} Nxf3+ {[%emt 0:01:00]} 16. gxf3 {[%emt 0:00:25]} f5 {[%emt 0:03:26]} 17. Bb5 {[%emt 0:29:48]} Re6 {[%emt 0:19:51]} 18. Be3 {[%emt 0:03:17]} fxe4 {[%emt 0:02:58]} 19. Bxb6 {[%emt 0:00:52]} Rxb6 {[%emt 0:00:38]} 20. Bc4+ {[%emt 0:00:05]} Be6 {[%emt 0:02:47]} 21. fxe4 {[%emt 0:01:15]} Re8 {[%emt 0:05:58]} 22. b3 {[%emt 0:00:58]} Bxc4 {[%emt 0:08:30]} 23. Rxc4 {[%emt 0:00:05]} Rd6 {[%emt 0:01:05]} 24. f3 {[%emt 0:06:17]} Rd3 {[%emt 0:02:21]} 25. O-O {[%emt 0:04:17]} Red8 {[%emt 0:01:23]} 26. Nf2 {[%emt 0:00:32]} Rxf3 {[%emt 0:00:40]} 27. Rd1 {[%emt 0:00:38]} Rdf8 {[%emt 0:01:07]} 28. Rc2 {[%emt 0:01:23]} Rg3+ {[%emt 0:02:25]} 29. Kh1 {[%emt 0:00:02]} Rgf3 {[%emt 0:00:23]} 30. Kg1 {[%emt 0:00:03]} Rg3+ {[%emt 0:00:48]} 31. Kh1 {[%emt 0:00:05]} Rgf3 {[%emt 0:01:13]} 1/2-1/2

[Event "15th Paderborner Schachtuerken-Cup 2018"]
[Site "Paderborn"]
[Date "2018.12.27"]
[Round "1"]
[White "Hellrung, Bernhard"]
[Black "Levin, Felix"]
[Result "0-1"]
[ECO "C45"]
[WhiteElo "1987"]
[BlackElo "2482"]
[Annotator "ChessBase"]
[PlyCount "124"]
[EventDate "2018.12.27"]
[EventType "swiss"]
[EventCountry "GER"]
[SourceTitle "playchess.com"]
[Source "ChessBase"]
[SourceQuality "1"]
[TimeControl "40/5400+30:900+30"]

1. e4 {[%emt 0:00:00]} e5 {[%emt 0:00:00]} 2. Nf3 {[%emt 0:00:00]} Nc6 {[%emt 0:00:06]} 3. d4 {[%emt 0:00:27]} exd4 {[%emt 0:00:13]} 4. Nxd4 {[%emt 0:00:00]} Nf6 {[%emt 0:00:29]} 5. Nxc6 {[%emt 0:00:24]} bxc6 {[%emt 0:00:06]} 6. e5 {[%emt 0:00:10]} Qe7 {[%emt 0:00:16]} 7. Qe2 {[%emt 0:00:12]} Nd5 {[%emt 0:00:08]} 8. c4 {[%emt 0:01:36]} Nb6 {[%emt 0:00:37]} 9. b3 {[%emt 0:03:06]} a5 {[%emt 0:06:32]} 10. Bb2 {[%emt 0:09:06]} a4 {[%emt 0:00:47]} 11. g3 {[%emt 0:03:27]} axb3 {[%emt 0:04:27]} 12. axb3 {[%emt 0:00:19]} Qb4+ {[%emt 0:02:07]} 13. Nd2 {[%emt 0:06:03]} Rxa1+ {[%emt 0:02:09]} 14. Bxa1 {[%emt 0:00:06]} Qa5 {[%emt 0:02:02]} 15. Bd4 {[%emt 0:14:32]} Bb4 {[%emt 0:06:59]} 16. Bg2 {[%emt 0:05:16]} Qa2 {[%emt 0:17:28]} 17. Qd3 {[%emt 0:41:26]} Bxd2+ {[%emt 0:13:30]} 18. Qxd2 {[%emt 0:00:08]} Qxb3 {[%emt 0:00:19]} 19. O-O {[%emt 0:04:19]} O-O {[%emt 0:08:18]} 20. c5 {[%emt 0:03:18]} Nd5 {[%emt 0:00:30]} 21. Ra1 {[%emt 0:00:20]} Nb4 {[%emt 0:09:13]} 22. Qc3 {[%emt 0:02:03]} Qxc3 {[%emt 0:01:34]} 23. Bxc3 {[%emt 0:00:00]} Na6 {[%emt 0:01:02]} 24. Bd4 {[%emt 0:00:20]} Bb7 {[%emt 0:00:48]} 25. Bf1 {[%emt 0:00:11]} Ra8 {[%emt 0:00:09]} 26. Ra4 {[%emt 0:01:02]} Kf8 {[%emt 0:03:51]} 27. f4 {[%emt 0:00:12]} Ke7 {[%emt 0:01:27]} 28. f5 {[%emt 0:00:14]} f6 {[%emt 0:00:13]} 29. exf6+ {[%emt 0:00:27]} gxf6 {[%emt 0:00:06]} 30. Bc4 {[%emt 0:00:31]} d5 {[%emt 0:01:29]} 31. cxd6+ {[%emt 0:00:20]} cxd6 {[%emt 0:01:59]} 32. Ra2 {[%emt 0:00:44]} Nc7 {[%emt 0:07:15]} 33. Rb2 {[%emt 0:00:59]} Bc8 {[%emt 0:03:33]} 34. Re2+ {[%emt 0:00:23]} Kf8 {[%emt 0:01:15]} 35. Bxf6 {[%emt 0:00:46]} d5 {[%emt 0:01:14]} 36. Bd3 {[%emt 0:00:34]} Ba6 {[%emt 0:02:48]} 37. Bxa6 {[%emt 0:00:33]} Rxa6 {[%emt 0:00:04]} 38. Re7 {[%emt 0:00:08]} Ne8 {[%emt 0:00:28]} 39. Bh4 {[%emt 0:00:18]} Ng7 {[%emt 0:02:54]} 40. f6 {[%emt 0:03:56]} Nf5 {[%emt 0:00:07]} 41. Rxh7 {[%emt 0:15:17]} Nxh4 {[%emt 0:15:46]} 42. Rxh4 {[%emt 0:01:02]} c5 {[%emt 0:00:00]} 43. Rh8+ {[%emt 0:00:00]} Kf7 {[%emt 0:00:00]} 44. Rh7+ {[%emt 0:00:00]} Kg6 {[%emt 0:00:00]} 45. Rd7 {[%emt 0:00:00]} d4 {[%emt 0:00:00]} 46. f7 {[%emt 0:00:00]} Kg7 {[%emt 0:00:00]} 47. Rd5 {[%emt 0:00:00]} Rc6 {[%emt 0:00:00]} 48. Kf2 {[%emt 0:00:00]} Kxf7 {[%emt 0:00:00]} 49. Ke2 {[%emt 0:00:00]} Kf6 {[%emt 0:02:09]} 50. Kd2 {[%emt 0:00:00]} Rc8 {[%emt 0:00:20]} 51. h4 {[%emt 0:00:00]} Ke6 {[%emt 0:00:13]} 52. Rg5 {[%emt 0:00:00]} c4 {[%emt 0:00:33]} 53. Rg6+ {[%emt 0:04:35]} Ke5 {[%emt 0:00:19]} 54. Rg5+ {[%emt 0:00:07]} Kd6 {[%emt 0:00:34]} 55. Rg6+ {[%emt 0:01:27]} Kc5 {[%emt 0:00:12]} 56. h5 {[%emt 0:00:07]} Ra8 {[%emt 0:00:24]} 57. h6 {[%emt 0:00:47]} Ra2+ {[%emt 0:00:06]} 58. Kc1 {[%emt 0:00:39]} d3 {[%emt 0:01:23]} 59. Rg4 {[%emt 0:00:57]} c3 {[%emt 0:00:21]} 60. Kb1 {[%emt 0:00:11]} Rb2+ {[%emt 0:00:24]} 61. Ka1 {[%emt 0:00:23]} d2 {[%emt 0:00:14]} 62. Rg5+ {[%emt 0:00:38]} Kc4 {[%emt 0:00:11]} 0-1

[Event "15th Paderborner Schachtuerken-Cup 2018"]
[Site "Paderborn"]
[Date "2018.12.27"]
[Round "1"]
[White "Hoette, Moritz"]
[Black "Skembris, Spyridon"]
[Result "0-1"]
[ECO "B15"]
[WhiteElo "1979"]
[BlackElo "2384"]
[Annotator "NA"]
[PlyCount "94"]
[EventDate "2018.12.27"]
[EventType "swiss"]
[EventCountry "GER"]
[SourceTitle "playchess.com"]
[Source "ChessBase"]
[SourceQuality "1"]
[TimeControl "40/5400+30:900+30"]

1. d4 {[%emt 0:00:00]} g6 {[%emt 0:01:35]} 2. e4 {[%emt 0:00:00]} c6 {[%emt 0:00:50]} 3. Nf3 {[%emt 0:00:34]} Bg7 {[%emt 0:00:30]} 4. Nc3 {[%emt 0:00:20]} d5 {[%emt 0:00:22]} 5. exd5 {[%emt 0:00:28]} cxd5 {[%emt 0:00:13]} 6. Bb5+ {[%emt 0:00:07]} Bd7 {[%emt 0:00:43]} 7. Bxd7+ {[%emt 0:00:37]} Qxd7 {[%emt 0:00:12]} 8. O-O {[%emt 0:00:50]} Nc6 {[%emt 0:00:12]} 9. Bf4 {[%emt 0:00:38]} Nh6 {[%emt 0:00:54]} 10. Re1 {[%emt 0:01:19]} O-O {[%emt 0:01:21]} 11. Ne5 {[%emt 0:00:37]} Nxe5 {[%emt 0:01:05]} 12. Bxe5 {[%emt 0:00:02]} f6 {[%emt 0:01:01]} 13. Bf4 {[%emt 0:01:06]} Nf7 {[%emt 0:00:18]} 14. Bg3 {[%emt 0:00:41]} Rfe8 {[%emt 0:08:00]} 15. Qd3 {[%emt 0:02:39]} a6 {[%emt 0:00:49]} 16. Rad1 {[%emt 0:00:24]} Rac8 {[%emt 0:00:10]} 17. a3 {[%emt 0:04:06]} e6 {[%emt 0:04:46]} 18. h3 {[%emt 0:01:32]} b5 {[%emt 0:01:22]} 19. Re2 {[%emt 0:02:06]} Rc4 {[%emt 0:02:16]} 20. Nb1 {[%emt 0:01:32]} Qc8 {[%emt 0:06:36]} 21. c3 {[%emt 0:00:19]} e5 {[%emt 0:00:41]} 22. dxe5 {[%emt 0:01:34]} fxe5 {[%emt 0:02:06]} 23. Nd2 {[%emt 0:01:21]} Rc6 {[%emt 0:08:57]} 24. Nf1 {[%emt 0:06:45]} Rd8 {[%emt 0:02:04]} 25. Ne3 {[%emt 0:06:02]} Rcd6 {[%emt 0:24:39]} 26. Ng4 {[%emt 0:02:45]} d4 {[%emt 0:03:48]} 27. Rc1 {[%emt 0:01:30]} dxc3 {[%emt 0:06:36]} 28. Qxc3 {[%emt 0:00:11]} Rd1+ {[%emt 0:00:18]} 29. Rxd1 {[%emt 0:02:28]} Rxd1+ {[%emt 0:00:10]} 30. Kh2 {[%emt 0:00:08]} Qxc3 {[%emt 0:00:07]} 31. bxc3 {[%emt 0:00:01]} Ra1 {[%emt 0:01:20]} 32. f4 {[%emt 0:06:13]} exf4 {[%emt 0:04:37]} 33. Re8+ {[%emt 0:00:02]} Bf8 {[%emt 0:00:17]} 34. Bxf4 {[%emt 0:00:08]} Kg7 {[%emt 0:00:30]} 35. Ra8 {[%emt 0:04:15]} g5 {[%emt 0:02:00]} 36. Bg3 {[%emt 0:03:37]} h5 {[%emt 0:02:25]} 37. Rxa6 {[%emt 0:01:50]} hxg4 {[%emt 0:00:07]} 38. Rb6 {[%emt 0:00:20]} Rxa3 {[%emt 0:01:44]} 39. Rxb5 {[%emt 0:00:19]} Rxc3 {[%emt 0:00:42]} 40. hxg4 {[%emt 0:01:36]} Bc5 {[%emt 0:01:37]} 41. Rb1 {[%emt 0:17:09]} Kg6 {[%emt 0:15:45]} 42. Ra1 {[%emt 0:00:26]} Nh6 {[%emt 0:01:11]} 43. Ra6+ {[%emt 0:00:10]} Kh7 {[%emt 0:00:10]} 44. Ra4 {[%emt 0:01:36]} Rd3 {[%emt 0:00:01]} 45. Rc4 {[%emt 0:01:01]} Bb6 {[%emt 0:03:14]} 46. Rb4 {[%emt 0:00:31]} Bd4 {[%emt 0:00:25]} 47. Rc4 {[%emt 0:00:25]} Nxg4+ {[%emt 0:00:15]} 0-1

[Event "15th Paderborner Schachtuerken-Cup 2018"]
[Site "Paderborn"]
[Date "2018.12.27"]
[Round "1"]
[White "Hufendiek, Ekkehard"]
[Black "Hintze, Helge"]
[Result "1-0"]
[ECO "C00"]
[WhiteElo "1976"]
[BlackElo "2283"]
[Annotator "NA"]
[PlyCount "114"]
[EventDate "2018.12.27"]
[EventType "swiss"]
[EventCountry "GER"]
[SourceTitle "playchess.com"]
[Source "ChessBase"]
[SourceQuality "1"]
[TimeControl "40/5400+30:900+30"]

1. e4 {[%emt 0:00:00]} e6 {[%emt 0:00:00]} 2. d3 {[%emt 0:00:00]} d5 {[%emt 0:00:22]} 3. Nd2 {[%emt 0:00:04]} c5 {[%emt 0:00:25]} 4. Ngf3 {[%emt 0:00:15]} Nc6 {[%emt 0:00:27]} 5. g3 {[%emt 0:00:25]} Nf6 {[%emt 0:00:16]} 6. Bg2 {[%emt 0:00:50]} b6 {[%emt 0:02:23]} 7. O-O {[%emt 0:00:39]} Be7 {[%emt 0:00:47]} 8. Re1 {[%emt 0:01:37]} Bb7 {[%emt 0:00:57]} 9. c3 {[%emt 0:01:53]} Qc7 {[%emt 0:01:38]} 10. e5 {[%emt 0:01:56]} Nd7 {[%emt 0:00:22]} 11. Qe2 {[%emt 0:01:53]} h6 {[%emt 0:00:45]} 12. Nf1 {[%emt 0:06:03]} b5 {[%emt 0:04:10]} 13. d4 {[%emt 0:03:12]} b4 {[%emt 0:03:08]} 14. a3 {[%emt 0:09:38]} bxc3 {[%emt 0:14:40]} 15. bxc3 {[%emt 0:00:35]} Na5 {[%emt 0:00:29]} 16. N3d2 {[%emt 0:03:15]} Bc6 {[%emt 0:16:32]} 17. Ne3 {[%emt 0:07:30]} cxd4 {[%emt 0:07:29]} 18. cxd4 {[%emt 0:00:13]} Rb8 {[%emt 0:00:11]} 19. f4 {[%emt 0:02:02]} g6 {[%emt 0:03:08]} 20. Nf3 {[%emt 0:09:18]} Bb5 {[%emt 0:01:30]} 21. Qf2 {[%emt 0:00:37]} Nb6 {[%emt 0:02:40]} 22. g4 {[%emt 0:06:04]} Nb3 {[%emt 0:08:40]} 23. Rb1 {[%emt 0:00:44]} Nxc1 {[%emt 0:00:22]} 24. Rexc1 {[%emt 0:04:39]} Qd7 {[%emt 0:01:53]} 25. Rc3 {[%emt 0:04:09]} Rc8 {[%emt 0:04:40]} 26. Rxc8+ {[%emt 0:03:18]} Nxc8 {[%emt 0:00:07]} 27. Qc2 {[%emt 0:06:14]} Nb6 {[%emt 0:01:41]} 28. f5 {[%emt 0:01:26]} gxf5 {[%emt 0:08:05]} 29. gxf5 {[%emt 0:00:16]} Qc6 {[%emt 0:00:23]} 30. fxe6 {[%emt 0:09:14]} Qxc2 {[%emt 0:01:09]} 31. exf7+ {[%emt 0:00:05]} Kxf7 {[%emt 0:00:08]} 32. Nxc2 {[%emt 0:00:04]} Bd3 {[%emt 0:00:03]} 33. Nfe1 {[%emt 0:02:00]} Bf5 {[%emt 0:02:48]} 34. Rb3 {[%emt 0:04:09]} Be6 {[%emt 0:05:50]} 35. Rf3+ {[%emt 0:01:31]} Ke8 {[%emt 0:00:32]} 36. Nd3 {[%emt 0:01:51]} Rf8 {[%emt 0:01:31]} 37. Nf4 {[%emt 0:04:05]} Bf5 {[%emt 0:01:17]} 38. Nb4 {[%emt 0:04:32]} Be4 {[%emt 0:02:57]} 39. Rf1 {[%emt 0:00:02]} Rg8 {[%emt 0:00:17]} 40. Kh1 {[%emt 0:01:53]} Bxg2+ {[%emt 0:02:15]} 41. Nxg2 {[%emt 0:15:16]} Kd7 {[%emt 0:16:27]} 42. Nf4 {[%emt 0:00:52]} Rf8 {[%emt 0:00:00]} 43. Kg2 {[%emt 0:00:00]} a5 {[%emt 0:00:00]} 44. Nbxd5 {[%emt 0:00:00]} Nxd5 {[%emt 0:00:00]} 45. Nxd5 {[%emt 0:00:00]} Rxf1 {[%emt 0:00:00]} 46. Kxf1 {[%emt 0:00:00]} Bxa3 {[%emt 0:00:00]} 47. Ke2 {[%emt 0:00:00]} Ke6 {[%emt 0:00:00]} 48. Nc7+ {[%emt 0:00:00]} Kd7 {[%emt 0:00:00]} 49. Nb5 {[%emt 0:00:00]} Bb2 {[%emt 0:00:00]} 50. Kd3 {[%emt 0:00:00]} a4 {[%emt 0:00:00]} 51. Nc3 {[%emt 0:00:00]} a3 {[%emt 0:00:00]} 52. Na2 {[%emt 0:00:00]} Kc6 {[%emt 0:00:00]} 53. Ke4 {[%emt 0:00:00]} Ba1 {[%emt 0:00:00]} 54. d5+ {[%emt 0:00:08]} Kc5 {[%emt 0:00:00]} 55. d6 {[%emt 0:00:12]} Kc6 {[%emt 0:00:00]} 56. Nb4+ {[%emt 0:00:01]} Kd7 {[%emt 0:00:00]} 57. Kd5 {[%emt 0:00:01]} Ke8 {[%emt 0:01:09]} 1-0

[Event "15th Paderborner Schachtuerken-Cup 2018"]
[Site "Paderborn"]
[Date "2018.12.28"]
[Round "2"]
[White "Ackermann, Hans Werner"]
[Black "Woestmann, Ulrich"]
[Result "1-0"]
[ECO "A06"]
[WhiteElo "2275"]
[BlackElo "2018"]
[Annotator "NA"]
[PlyCount "105"]
[EventDate "2018.12.27"]
[EventType "swiss"]
[EventCountry "GER"]
[SourceTitle "playchess.com"]
[Source "ChessBase"]
[SourceQuality "1"]
[TimeControl "40/5400+30:900+30"]

1. Nf3 {[%emt 0:00:00]} Nf6 {[%emt 0:00:00]} 2. b3 {[%emt 0:00:23]} d5 {[%emt 0:07:38]} 3. Bb2 {[%emt 0:00:22]} c5 {[%emt 0:00:52]} 4. e3 {[%emt 0:00:04]} a6 {[%emt 0:00:12]} 5. d4 {[%emt 0:05:05]} Bg4 {[%emt 0:04:54]} 6. Be2 {[%emt 0:00:59]} e6 {[%emt 0:00:37]} 7. O-O {[%emt 0:00:59]} Nc6 {[%emt 0:00:48]} 8. Nbd2 {[%emt 0:00:56]} cxd4 {[%emt 0:03:25]} 9. Nxd4 {[%emt 0:03:50]} Bxe2 {[%emt 0:00:14]} 10. Qxe2 {[%emt 0:00:05]} Nxd4 {[%emt 0:03:44]} 11. Bxd4 {[%emt 0:00:12]} Rc8 {[%emt 0:02:12]} 12. c4 {[%emt 0:02:50]} Be7 {[%emt 0:06:33]} 13. cxd5 {[%emt 0:07:36]} Qxd5 {[%emt 0:05:19]} 14. Nc4 {[%emt 0:03:13]} Qh5 {[%emt 0:04:04]} 15. Qxh5 {[%emt 0:01:26]} Nxh5 {[%emt 0:00:02]} 16. Rac1 {[%emt 0:00:06]} O-O {[%emt 0:03:03]} 17. Nb6 {[%emt 0:00:22]} Rxc1 {[%emt 0:00:50]} 18. Rxc1 {[%emt 0:00:08]} Rd8 {[%emt 0:07:55]} 19. g3 {[%emt 0:17:45]} Bd6 {[%emt 0:11:53]} 20. f4 {[%emt 0:05:30]} Nf6 {[%emt 0:01:09]} 21. Bxf6 {[%emt 0:01:37]} gxf6 {[%emt 0:00:09]} 22. Kf2 {[%emt 0:00:49]} f5 {[%emt 0:03:39]} 23. Ke2 {[%emt 0:06:08]} Bb4 {[%emt 0:03:51]} 24. Rc2 {[%emt 0:01:23]} Kg7 {[%emt 0:01:10]} 25. Na4 {[%emt 0:02:49]} Rd7 {[%emt 0:01:45]} 26. Nb2 {[%emt 0:00:07]} Ba5 {[%emt 0:06:00]} 27. Nd3 {[%emt 0:00:30]} Bb6 {[%emt 0:05:21]} 28. a4 {[%emt 0:02:06]} f6 {[%emt 0:04:37]} 29. b4 {[%emt 0:05:16]} Kf7 {[%emt 0:00:50]} 30. a5 {[%emt 0:01:26]} Ba7 {[%emt 0:01:38]} 31. Rc8 {[%emt 0:00:17]} b6 {[%emt 0:01:37]} 32. Rh8 {[%emt 0:06:30]} Kg7 {[%emt 0:00:19]} 33. Ra8 {[%emt 0:00:09]} bxa5 {[%emt 0:00:33]} 34. bxa5 {[%emt 0:00:09]} Rc7 {[%emt 0:03:03]} 35. Kd2 {[%emt 0:02:55]} Kf7 {[%emt 0:01:12]} 36. Rh8 {[%emt 0:00:35]} Kg6 {[%emt 0:00:41]} 37. Rd8 {[%emt 0:00:48]} Rc6 {[%emt 0:00:36]} 38. Rg8+ {[%emt 0:01:46]} Kf7 {[%emt 0:00:12]} 39. Ra8 {[%emt 0:00:05]} Rc7 {[%emt 0:00:21]} 40. h3 {[%emt 0:02:52]} Ke7 {[%emt 0:01:36]} 41. Nb4 {[%emt 0:15:16]} Kd6 {[%emt 0:18:26]} 42. Rd8+ {[%emt 0:13:28]} Rd7 {[%emt 0:00:00]} 43. Rxd7+ {[%emt 0:00:00]} Kxd7 {[%emt 0:00:00]} 44. Kd3 {[%emt 0:00:00]} Kd6 {[%emt 0:00:00]} 45. Nxa6 {[%emt 0:00:00]} Kc6 {[%emt 0:00:00]} 46. g4 {[%emt 0:00:00]} fxg4 {[%emt 0:00:00]} 47. hxg4 {[%emt 0:00:00]} f5 {[%emt 0:00:00]} 48. g5 {[%emt 0:00:00]} e5 {[%emt 0:00:00]} 49. Nb4+ {[%emt 0:00:00]} Kb5 {[%emt 0:00:00]} 50. fxe5 {[%emt 0:00:00]} Bc5 {[%emt 0:00:00]} 51. a6 {[%emt 0:00:00]} Kb6 {[%emt 0:00:00]} 52. Kc4 {[%emt 0:00:00]} Bf8 {[%emt 0:01:17]} 53. e6 {[%emt 0:00:00]} 1-0

[Event "15th Paderborner Schachtuerken-Cup 2018"]
[Site "Paderborn"]
[Date "2018.12.28"]
[Round "2"]
[White "Hoffmann, Matthias"]
[Black "Zimmermann, Klemens"]
[Result "0-1"]
[ECO "B72"]
[WhiteElo "2019"]
[BlackElo "2282"]
[Annotator "NA"]
[PlyCount "80"]
[EventDate "2018.12.27"]
[EventType "swiss"]
[EventCountry "GER"]
[SourceTitle "playchess.com"]
[Source "ChessBase"]
[SourceQuality "1"]
[TimeControl "40/5400+30:900+30"]

1. e4 {[%emt 0:00:13]} c5 {[%emt 0:00:00]} 2. Nf3 {[%emt 0:00:27]} d6 {[%emt 0:00:00]} 3. d4 {[%emt 0:00:18]} cxd4 {[%emt 0:00:00]} 4. Nxd4 {[%emt 0:00:17]} Nf6 {[%emt 0:00:00]} 5. Nc3 {[%emt 0:00:29]} Nc6 {[%emt 0:00:00]} 6. h3 {[%emt 0:08:27]} g6 {[%emt 0:00:17]} 7. Be3 {[%emt 0:02:02]} Bg7 {[%emt 0:00:07]} 8. Qd2 {[%emt 0:08:43]} O-O {[%emt 0:03:41]} 9. O-O-O {[%emt 0:00:35]} Bd7 {[%emt 0:00:05]} 10. g4 {[%emt 0:02:27]} Rc8 {[%emt 0:10:08]} 11. Kb1 {[%emt 0:05:39]} Ne5 {[%emt 0:04:07]} 12. g5 {[%emt 0:08:45]} Ne8 {[%emt 0:01:04]} 13. f4 {[%emt 0:11:40]} Nc4 {[%emt 0:01:36]} 14. Bxc4 {[%emt 0:00:10]} Rxc4 {[%emt 0:00:01]} 15. e5 {[%emt 0:10:59]} dxe5 {[%emt 0:06:49]} 16. Ndb5 {[%emt 0:04:04]} exf4 {[%emt 0:07:49]} 17. Bxa7 {[%emt 0:00:40]} Nd6 {[%emt 0:05:24]} 18. Nxd6 {[%emt 0:04:38]} exd6 {[%emt 0:00:02]} 19. Qxd6 {[%emt 0:00:27]} Qa5 {[%emt 0:01:31]} 20. Bb6 {[%emt 0:09:58]} Qa6 {[%emt 0:00:10]} 21. Nd5 {[%emt 0:00:25]} Be6 {[%emt 0:22:19]} 22. b3 {[%emt 0:02:15]} Rxc2 {[%emt 0:08:40]} 23. Kxc2 {[%emt 0:09:54]} Qe2+ {[%emt 0:15:50]} 24. Rd2 {[%emt 0:01:42]} Qe4+ {[%emt 0:03:15]} 25. Rd3 {[%emt 0:02:53]} Qg2+ {[%emt 0:01:51]} 26. Kc1 {[%emt 0:02:38]} Qb2+ {[%emt 0:02:53]} 27. Kd1 {[%emt 0:00:06]} Qb1+ {[%emt 0:00:03]} 28. Ke2 {[%emt 0:00:33]} Qxh1 {[%emt 0:00:17]} 29. Ne7+ {[%emt 0:00:06]} Kh8 {[%emt 0:00:02]} 30. Bd4 {[%emt 0:00:16]} Qe4+ {[%emt 0:03:06]} 31. Kd2 {[%emt 0:00:46]} Re8 {[%emt 0:01:25]} 32. Bf6 {[%emt 0:02:15]} Bf5 {[%emt 0:01:14]} 33. Nxf5 {[%emt 0:00:37]} gxf5 {[%emt 0:00:47]} 34. Bxg7+ {[%emt 0:00:36]} Kxg7 {[%emt 0:00:02]} 35. Qf6+ {[%emt 0:00:07]} Kg8 {[%emt 0:00:01]} 36. Rd8 {[%emt 0:00:54]} f3 {[%emt 0:00:34]} 37. Rxe8+ {[%emt 0:00:55]} Qxe8 {[%emt 0:00:02]} 38. Qxf5 {[%emt 0:00:10]} Qe2+ {[%emt 0:00:33]} 39. Kc1 {[%emt 0:00:04]} Qe1+ {[%emt 0:00:14]} 40. Kc2 {[%emt 0:00:24]} f2 {[%emt 0:00:01]} 0-1